Cogmind - Beta 12 X6 @@@ ROGUE MODE // 2023.02.22 @ 21:19:19 Player: ArabianSandBoa Result: Self-destructed Performance ------------- Evolutions (1) 500 Regions Visited (3) 600 Robots Destroyed (35) 175 Value Destroyed (665) 665 Prototype IDs (5) 100 Alien Tech Used (0) 0 Bonus (-1134) -1134 TOTAL SCORE: 906 Bonus ------- High Alert Combat Kills 16 Follower Combat Kills 7 Friendly Fire -1157 Cogmind --------- Core Integrity 386/400 Matter 290/300 Energy 100/100 System Corruption 0% Temperature Cool (0) Movement Rolling (215) Ox9 Location -9/Materials Parts ------- > --- POWER (1) -------- (None) > --- PROPULSION (3) --- Wheel > --- UTILITY (3) ------ Huge Storage Unit Improved Terrain Scanner Reactive Plating > --- WEAPON (2) ------- Spread Laser > --- INVENTORY (25) --- Light Ion Engine Light Treads Light Treads Disposable Heat Sink Huge Storage Unit Weight Redist. System Structural Scanner Visual Processing Unit Signal Interpreter Seismic Detector Transport Network Coupler Recoil Stabilizer Propulsion Shielding Propulsion Shielding Propulsion Shielding Utility Shielding Weapon Shielding Reactive Plating Reactive Plating Field Recycling Unit (0) Light Cannon Grenade Launcher YI-UF0's Doublenader Datajack Mining Laser Peak State ------------ > --- POWER ------------ Light Ion Engine > --- PROPULSION ------- Compact Wheel Compact Wheel > --- UTILITY ---------- Huge Storage Unit Improved Terrain Scanner > --- WEAPON ----------- EM Pulse Gun YI-UF0's Doublenader > --- INVENTORY -------- Ion Engine Light Treads Light Treads Light Treads Light Treads Disposable Heat Sink Huge Storage Unit Weight Redist. System Visual Processing Unit Signal Interpreter Seismic Detector Seismic Detector Transport Network Coupler Propulsion Shielding Propulsion Shielding Propulsion Shielding Utility Shielding Field Recycling Unit Spread Laser Spread Laser Spread Laser Light Cannon Grenade Launcher Grenade Launcher Mining Laser [Rating: 15] Favorites ----------- Power Light Ion Engine Engine Light Ion Engine Propulsion Compact Wheel Treads Light Treads Wheel Compact Wheel Utility Improved Terrain Scanner Device Improved Terrain Scanner Storage Huge Storage Unit Protection Reactive Plating Weapon Spread Laser Energy Gun Spread Laser Ballistic Gun Assault Rifle Ballistic Cannon Light Cannon Launcher Grenade Launcher Build | -11 -10 -10 -9 ------- Run | Jun Mat Min Mat Slots Evolved 2 | . . . 2 Power . | . . . . Propulsion 1 | . . . 1 Utility 1 | . . . 1 Weapon . | . . . . Parts Attached 25 | 7 10 7 1 Power 3 | 1 1 1 . Engine 3 | 1 1 1 . Core . | . . . . Reactor . | . . . . Propulsion 5 | 2 2 1 . Treads 2 | 2 . . . Leg . | . . . . Wheel 3 | . 2 1 . Hover . | . . . . Flight . | . . . . Utility 4 | 2 1 . 1 Device 1 | 1 . . . Storage 2 | 1 1 . . Processor . | . . . . Hackware . | . . . . Protection 1 | . . . 1 Artifact . | . . . . Weapon 13 | 2 6 5 . Energy Gun 9 | 1 4 4 . Energy Cannon . | . . . . Ballistic Gun 1 | 1 . . . Ballistic Cannon 1 | . 1 . . Launcher 2 | . 1 1 . Special Weapon . | . . . . Impact Weapon . | . . . . Slashing Weapon . | . . . . Piercing Weapon . | . . . . Special Melee Weapon . | . . . . Unidentified Prototypes 1 | . . 1 . Corrupted Parts 1 | . . 1 . System Corruption 7 | . . 7 . Parts Lost 5 | . . 5 . Power 1 | . . 1 . Propulsion 2 | . . 2 . Utility . | . . . . Weapon 2 | . . 2 . Highest Loss Streak 4 | . . 4 . To Critical Strikes . | . . . . Average Slot Usage (%) 86 | . 100 80 48 Engine 10 | . 14 8 . Treads 3 | . 6 . . Wheel 20 | . 21 21 11 Device 13 | . 14 14 11 Storage 13 | . 14 14 11 Energy Gun 20 | . 23 18 11 Launcher 2 | . 3 2 . Naked Turns . | . . . . Heaviest Build 94 | 13 90 94 94 Greatest Support 40 | 40 40 32 10 Greatest Overweight (x) 29 | 1 2 29 9 Average Overweight (x) 3 | . 1 4 8 Largest Inventory Capacity 25 | 8 25 25 25 Average Capacity 22 | 7 21 25 25 Most Carried 25 | 5 24 25 25 Average Carried 16 | 3 11 24 24 Final Capacity 25 | 8 25 25 25 Final Carried 25 | 5 24 24 25 Class Distribution -------------------- 100% | Mutant Dominant Class ---------------- Mutant | -10/Materials Mutant | -10/Mines Mutant | -9/Materials Resources | -11 -10 -10 -9 ----------- Run | Jun Mat Min Mat Matter Collected 599 | 207 308 84 . Remotely . | . . . . Salvage Created 762 | 72 416 229 45 Parts 67 | 6 45 12 4 Haulers Intercepted 2 | . 2 . . Recyclers Shooed . | . . . . Parts Field Recycled . | . . . . Retrieved Matter . | . . . . Parts Self-Destructed . | . . . . Prevented . | . . . . Kills | -11 -10 -10 -9 ------- Run | Jun Mat Min Mat Combat Hostiles Destroyed 23 | . 16 6 1 Guns 17 | . 10 6 1 AOE 6 | . 6 . . Classes Destroyed 12 | 2 6 3 1 Worker 1 | . . 1 . Builder 2 | . 1 1 . Tunneler 1 | 1 . . . Hauler 2 | . 2 . . Recycler 1 | 1 . . . Operator 2 | . 2 . . Watcher 3 | . 3 . . Swarmer 11 | . 9 2 . Grunt 9 | . 7 2 . Sentry 1 | . . . 1 Demolisher 1 | . . 1 . Assembled 1 | . . 1 . Best Kill Streak 7 | 1 7 4 1 Combat Bots Only 5 | . 5 4 1 Max Kills in Single Turn 2 | 1 2 1 1 Gunslinging . | . . . . Exploded 2 | . 2 . . Melee . | . . . . Uniques/NPCs Destroyed 1 | . . 1 . YI-UF0 (-10/Mines) Combat | -11 -10 -10 -9 -------- Run | Jun Mat Min Mat Damage Taken 676 | . 263 369 44 Core 119 | . 52 53 14 Absorbed by Shields . | . . . . Core Remaining (%) 79 | 100 . 58 . Volleys Fired 77 | 7 37 30 3 Largest 2 | 2 2 2 1 Hottest 130 | 60 130 130 65 Shots Fired 120 | 13 62 42 3 Gun 102 | 13 44 42 3 Cannon 6 | . 6 . . Launcher 12 | . 12 . . Special . | . . . . Kinetic 13 | 7 6 . . Thermal 73 | . 38 32 3 Explosive 12 | . 12 . . Electromagnetic 22 | 6 6 10 . Robot Hit Streak 10 | 5 9 9 10 Robot Miss Streak 6 | 1 6 5 2 Penetration Max . | . . . . Secondary Targets 3 | . 1 2 . Max Gunslinging Chain 1 | . 1 1 . Shots Hit Robots 100 | 9 48 40 3 Core Hits 120 | 3 64 47 6 Critical Kills . | . . . . Critical Parts Destroyed . | . . . . Critical Strikes . | . . . . Melee Attacks . | . . . . Impact . | . . . . Slashing . | . . . . Piercing . | . . . . Sneak Attacks . | . . . . Combat Hostiles . | . . . . Follow-up Attacks . | . . . . Damage Inflicted 2045 | 115 1251 636 43 Guns 1136 | 115 464 514 43 Cannons 106 | . 106 . . Explosions 803 | . 681 122 . Melee . | . . . . Ramming . | . . . . Kinetic 179 | 73 106 . . Thermal 1004 | . 425 536 43 Explosive 681 | . 681 . . Electromagnetic 181 | 42 39 100 . Impact . | . . . . Slashing . | . . . . Piercing . | . . . . Highest Corruption 7 | . . 7 . Average Corruption 7 | . . 7 . Corruption Purged . | . . . . Corruption Blocked . | . . . . Effects 17 | . . 17 . Message Errors 4 | . . 4 . Matter Fused 2 | . . 2 . Heat Flow Errors 1 | . . 1 . Energy Discharges 5 | . . 5 . Data Loss (minor) 2 | . . 2 . Data Loss (major) 1 | . . 1 . Misfires 1 | . . 1 . Alerts 1 | . . 1 . Overload Shots . | . . . . Overflow Damage 44 | . 27 17 . Projectiles . | . . . . Explosions 44 | . 27 17 . Melee . | . . . . Knockbacks 1 | . 1 . . Impact . | . . . . Kinetic 1 | . 1 . . Secondary . | . . . . Self-Inflicted Damage . | . . . . Shots . | . . . . Rammed . | . . . . Targets Rammed . | . . . . Kicked . | . . . . Crushed . | . . . . Highest Temperature 315 | . 272 315 63 Average Temperature 89 | . 85 99 34 Received Heat Transfer 146 | . 78 50 18 Siege Activations . | . . . . Robots Corrupted 1 | . . 1 . Combat Hostiles . | . . . . Parts Fried . | . . . . Impact Corruptions . | . . . . Robots Melted . | . . . . Combat Hostiles . | . . . . Parts Melted 1 | . 1 . . Heat Transferred 1220 | . 525 640 55 Parts Sabotaged . | . . . . Parts Stolen . | . . . . Parts Stripped . | . . . . Power Chain Reactions 1 | . . 1 . Missiles Intercepted . | . . . . Alert | -11 -10 -10 -9 ------- Run | Jun Mat Min Mat Peak Influence 438 | 10 438 147 45 Initial 26 | . 6 26 . Average 98 | 7 179 38 11 Maximum Alert Level 2 | . 2 . . Low Security (%) 89 | 100 76 100 100 Level 1 8 | . 19 . . Level 2 1 | . 3 . . Level 3 . | . . . . Level 4 . | . . . . Level 5 . | . . . . High Security . | . . . . Max Security . | . . . . Squads Dispatched 4 | . 4 . . Investigation 4 | . 4 . . Extermination . | . . . . Reinforcement . | . . . . Assault . | . . . . Garrison . | . . . . Intercept . | . . . . Searches Triggered . | . . . . Construction Impeded . | . . . . Haulers Reinforced . | . . . . Active Scanning Responses . | . . . . Cargo Convoy Interrupts . | . . . . Stealth | -11 -10 -10 -9 --------- Run | Jun Mat Min Mat Distress Signals 2 | . 2 . . Communications Jammed . | . . . . Distress Signals . | . . . . Times Spotted 49 | . 23 25 1 Peak Tracking Total 15 | . 6 15 1 Tactical Retreats . | . . . . Traps | -11 -10 -10 -9 ------- Run | Jun Mat Min Mat Traps Triggered . | . . . . Indirectly . | . . . . Trap Hack Attempts . | . . . . Triggered . | . . . . Disarmed . | . . . . Reprogrammed . | . . . . Reused . | . . . . Traps Extracted . | . . . . Installed . | . . . . Triggered . | . . . . Machines | -11 -10 -10 -9 ---------- Run | Jun Mat Min Mat Machines Disabled 3 | . 3 . . Max in Single Turn 2 | . 2 . . Machines Repaired . | . . . . Machines Sabotaged . | . . . . Overloaded Fab Kills . | . . . . Hacking | -11 -10 -10 -9 --------- Run | Jun Mat Min Mat Machines Accessed 9 | . 9 . . Terminals 7 | . 7 . . Fabricators . | . . . . Repair Stations . | . . . . Recycling Units 2 | . 2 . . Scanalyzers . | . . . . Garrison Access . | . . . . Total Hacks 36 | . 36 . . Successful 19 | . 19 . . Failed 17 | . 17 . . Catastrophic 1 | . 1 . . Database Lockouts . | . . . . Manual 19 | . 19 . . Terminals 30 | . 30 . . Fabricators . | . . . . Repair Stations . | . . . . Recycling Units 6 | . 6 . . Scanalyzers . | . . . . Garrison Access . | . . . . Terminal Hacks 15 | . 15 . . Robot Analysis 7 | . 7 . . Prototype ID Bank 3 | . 3 . . Emergency Access Points 2 | . 2 . . Unreport Threat 1 | . 1 . . Hauler Manifests 1 | . 1 . . Zone Layout 1 | . 1 . . Fabricator Hacks . | . . . . Repair Station Hacks . | . . . . Recycling Unit Hacks 2 | . 2 . . Report Inventory 1 | . 1 . . Retrieve Components 1 | . 1 . . Scanalyzer . | . . . . Garrison Access Hacks . | . . . . Unauthorized Hacks 2 | . 2 . . Terminals . | . . . . Fabricators . | . . . . Repair Stations . | . . . . Recycling Units 2 | . 2 . . Tunnel 2 | . 2 . . Scanalyzers . | . . . . Garrison Access . | . . . . Data Cores Recovered 2 | . 2 . . Used . | . . . . Hacking Detections 7 | . 7 . . Full Trace Events 7 | . 7 . . Feedback Events . | . . . . Feedback Blocked . | . . . . Robot Schematics Acquired . | . . . . Robots Built . | . . . . Authchips . | . . . . Time . | . . . . Total Robot Build Rating . | . . . . Part Schematics Acquired . | . . . . Parts Built . | . . . . Authchips . | . . . . Time . | . . . . Total Part Build Rating . | . . . . Parts Repaired . | . . . . Time . | . . . . Parts Recycled . | . . . . Recycled Matter . | . . . . Retrieved Matter . | . . . . Retrieved Components 2 | . 2 . . Parts Scanalyzed . | . . . . Part Schematics Acquired . | . . . . Parts Damaged . | . . . . Bothacking | -11 -10 -10 -9 ------------ Run | Jun Mat Min Mat Used RIF Installer . | . . . . Robots Hacked . | . . . . Non-combat . | . . . . Combat . | . . . . Robot Hacks Applied . | . . . . Relay Couplers Released . | . . . . Fabnet Peak Effective % . | . . . . Robots Rewired . | . . . . Allies Hacked . | . . . . Hacks Repelled . | . . . . Allies | -11 -10 -10 -9 -------- Run | Jun Mat Min Mat Total Allies 3 | . . 3 . Largest Group 3 | . . 3 . Highest-Rated Group 40 | . . 40 . Highest-Rated Ally 16 | . . 16 . Total Orders . | . . . . Ally Attacks 11 | . . 11 . Total Damage 104 | . . 104 . Kills 2 | . . 2 . Allies Corrupted . | . . . . Allies Melted . | . . . . Intel | -11 -10 -10 -9 ------- Run | Jun Mat Min Mat Robot Analysis Total 7 | . 7 . . Derelict Logs Recovered 2 | . . 2 . Drone Launches . | . . . . Drone Recoveries . | . . . . Exploration | -11 -10 -10 -9 ------------- Run | Jun Mat Min Mat Turns Passed 2959 | 185 1355 1110 309 Spaces Moved 1605 | 50 818 595 142 Core 21 | 19 . 2 . Treads 191 | 31 160 . . Legs . | . . . . Wheels 1393 | . 658 593 142 Hover . | . . . . Flight . | . . . . Fastest Speed 50 | 50 130 130 200 Average Speed 150 | 119 136 160 205 Slowest Speed 1500 | 160 320 1500 215 Overloaded Moves . | . . . . Propulsion Burnouts . | . . . . Robots Hopped . | . . . . Cave-ins Triggered . | . . . . Exploration Rate (%) 55 | 5 98 100 18 Regions Visited 3 Branch Regions 1 Pre-discovered Areas 2 | . 2 . . Known Exits Taken . | . . . . Unknown Exits Taken 3 | 1 1 1 . Scrap Searched 1 | . . 1 . Spaces Dug . | . . . . Terrain Destroyed 69 | . 66 3 . Melee . | . . . . Projectile . | . . . . AOE 69 | . 66 3 . Terrain Rammed . | . . . . Walls Destroyed . | . . . . Machines Disabled . | . . . . Actions | -11 -10 -10 -9 --------- Run | Jun Mat Min Mat Total 2018 | 162 992 708 156 Wait 260 | 84 103 69 4 Move 1602 | 49 817 594 142 Hop . | . . . . Pick Up 39 | 10 21 4 4 Fast Attach 9 | 7 . 2 . Attach 3 | . 1 1 1 Detach . | . . . . Swap 13 | . 9 4 . Drop 15 | 5 4 4 2 Fire 77 | 7 37 30 3 Melee . | . . . . Ram . | . . . . Kick . | . . . . Crush . | . . . . Escape Stasis . | . . . . Rewire . | . . . . Trap . | . . . . Miscellaneous . | . . . . Route ------- -11/Junkyard -10/Materials (discovered 4 exits: [*Mat x3] / [*Min]) -10/Mines (discovered 2 exits: [*Mat x2]) -9/Materials History --------- Turn | Location | Event 6 | -11/Junkyard | Discovered new exit (range 16) 186 | -11/Junkyard | Entered Materials 191 | -10/Materials | Discovered new exit (range 16) 319 | -10/Materials | Build established: Mutant 392 | -10/Materials | Discovered new exit (range 13) 662 | -10/Materials | Discovered new exit (range 15) 997 | -10/Materials | Discovered new exit (range 8) 1541 | -10/Materials | Entered Mines 1649 | -10/Mines | Assisted by bots powering up and referring to "LRC-V3" 1691 | -10/Mines | Learned Materials terminal intel 1710 | -10/Mines | Discovered new exit (range 10) 1844 | -10/Mines | YI-UF0 nonchalantly dropped a Grenade Launcher on the ground 1904 | -10/Mines | Destroyed YI-UF0 1909 | -10/Mines | Found Corrupted Prototype Launcher 1909 | -10/Mines | Identified YI-UF0's Doublenader 1960 | -10/Mines | Discovered new exit (range 11) 2124 | -10/Mines | Assembled infested the area 2179 | -10/Mines | Lost 4 parts (2n2w) 2226 | -10/Mines | Learned Materials stockpile data 2651 | -10/Mines | Entered Materials 2651 | -9/Materials | Evolved 2 slots: Propulsion x1, Utility x1 2653 | -9/Materials | Loaded intel: 12 terminal locations 2960 | -9/Materials | Self-destructed Last Messages --------------- 02603_ System corrupted: Energy discharge (-29). PARAMETERS=PROPULSION+1,UTILITY+1 LOCATION=UNKNOWN GOAL=ESCAPE Loading Materials stockpile data (x3)... Loading Materials terminal intel (x12)... 02697_ K-01 Serf collects debris. 02825_ Acquired Reactive Plating. 02826_ Dropped EM Pulse Gun. 02827_ Dropped Grenade Launcher. 02831_ Acquired Reactive Plating. 02831_ R-06 Scavenger collects EM Pulse Gun. 02834_ Acquired Reactive Plating. 02834_ R-06 Scavenger collects Grenade Launcher. 02841_ Acquired Recoil Stabilizer. 02843_ K-01 Serf collects debris. 02882_ Y-45 Defender destroyed. 02896_ R-06 Scavenger collects Beam Rifle. 02900_ R-06 Scavenger collects Lgt. Armor Plating. 02907_ K-01 Serf collects debris. Map ----- +----------------------------------------------------+ | ??# # [#?# #????????????? | | ??# #?? ### ###??????????? | | ?## #####/## #??????????? | | ?# #######?#??? | | ?# %[ #????? | | ## * ##### #????? | | ####### ##??# #????? | | # ####+####??# #????? | | + # ##?# #????? | | # # #### #????? | | # # + #????? | | # ! # #### #???#? | | ## ###### #??# #??#?? | | #????#########?## ###??? | | #### #??# #???? | | #???""" #??# #???? | | #####?#""" #??# #???? | | ##????#""" #??## ##???? | | ###???# [[ #???# #????? | | #??#?##""" [[ #???# #????? | | # #????##""" #?#?# ###### | | # #??????""" #???# # # | | # ####?#??? ?#???# # # | | ########+######?# # # | | #?# # # | | T #?# + @ # | | #?### # | | ################??# # | | ######?#???????????????# # | | ???????????????????#???# # | | #???????????????????????##### | | | | | | | | | | | | | | | | | | | | | | | | | | | | | | | | | | | | | | | +----------------------------------------------------+ Best States ------------- Heat Dissipation 28 Energy Generation 10 Energy Capacity 250 Matter Stores 300 Matter Capacity 300 Sight Range 16 Terrain Scan Range 16 Terrain Scan Density 10 Armor Coverage 150 Resistance: KI 20 Evasion (%) 50 Recoil Reduction 2 Item Schematics ----------------- None Robot Schematics ------------------ None Fabricated ------------ Nothing Alien Tech Used ----------------- None Achievements -------------- None Challenges ------------ None Game ------ Seed HypercooledCentriumCannon Manual? 0 Play Time 00:19:13 Cumulative 357.3 hours Start 2023.02.22 @ 20:56:13 End 2023.02.22 @ 21:19:19 Sessions 1 Manual Loads 0 Difficulty Rogue Special Mode None Game No. 421 Rogue 421 Adventurer 0 Explorer 0 Win Type - Total 0 Types 0/0/0/0/0/0/0/0/0 Lore% 51 Gallery% 74 Achievement% 61 Wizard Run 0 Options --------- ASCII 0 Keyboard 0 Movement Mouse Keybinds 0 Fullscreen 2 Font 24/Smallcaps Map View 76x50 Tactical HUD 1 Map Filters NONE Filters NONE Steam 1 RUN: 721f377c-a81d-4509-a650-1cebe4af81b1